fUSD/lending_fUSD_20240822
["ID","MTS","AMOUNT","RATE_DAILY","PERIOD"]
[335507084,1724291432721,-400.93515301,0.00010471,2]
[335507085,1724291432730,-150.99,0.0001048,2]
[335507086,1724291432740,-260.1727,0.0001048,2]
[335507087,1724291432750,-790.76,0.000105,2]
[335507088,1724291432759,-97442.8035,0.0001058,2]
[335507089,1724291432769,-825.399,0.0001058,2]
[335507090,1724291432779,-736.839,0.0001058,2]
[335507091,1724291432789,-2578.73335044,0.00010713,2]
[335507092,1724291432798,-800.2358121,0.00010758,2]
[335507093,1724291432919,-168.1012,0.00010758,2]
[335507094,1724291432929,-5954.9164,0.00010758,2]
[335507095,1724291432938,-376.10833737,0.00010835,2]
[335507096,1724291432947,-352.48357867,0.00010858,2]
[335507097,1724291432956,-173.52737741,0.00010858,2]
[335507098,1724291432966,-39199.5697,0.00010858,2]
[335507099,1724291432975,-7500.0,0.00010858,2]
[335507100,1724291432985,-304.73847415,0.00010888,2]
[335507101,1724291432994,-172.90794419,0.00010899,2]
[335507102,1724291433003,-547.29718905,0.00010949,2]
[335507103,1724291433012,-295.71648235,0.00010957,2]
[335507104,1724291433022,-3564.84170166,0.00010957,2]
[335507105,1724291433032,-157.19289366,0.00010957,2]
[335507106,1724291433042,-596.0,0.00010958,2]
[335507107,1724291433051,-1051.32949098,0.00010958,2]
[335507108,1724291433061,-168.82963944,0.00010958,2]
[335507109,1724291433070,-502.07232727,0.00010958,2]
[335507110,1724291433080,-503.51624699,0.00010958,2]
[335507111,1724291433089,-1821.66091685,0.00010958,2]
[335507112,1724291433099,-200.0,0.00010958,2]
[335507113,1724291433108,-500.0,0.00010958,2]
[335507114,1724291433118,-500.0,0.00010958,2]
[335507115,1724291433133,-500.0,0.00010958,2]
[335507116,1724291433143,-503.76358982,0.00010958,2]
[335507117,1724291433153,-500.0,0.00010958,2]
[335507118,1724291433163,-500.0,0.00010958,2]
[335507119,1724291433173,-500.0,0.00010958,2]
[335507120,1724291433183,-503.23750782,0.00010958,2]
[335507121,1724291433192,-500.0,0.00010958,2]
[335507122,1724291433202,-590.04759004,0.00010958,2]
[335507123,1724291433212,-553.3729376,0.00010958,2]
[335507124,1724291433221,-500.0,0.00010958,2]
[335507125,1724291433231,-500.0,0.00010958,2]
[335507126,1724291433241,-500.0,0.00010958,2]
[335507127,1724291433250,-500.0,0.00010958,2]
[335507128,1724291433260,-500.0,0.00010958,2]
[335507129,1724291433270,-500.0,0.00010958,2]
[335507130,1724291433280,-500.0,0.00010958,2]
[335507131,1724291433290,-572.49796405,0.00010958,2]
[335507132,1724291433300,-500.0,0.00010958,2]
[335507133,1724291433309,-500.0,0.00010958,2]
[335507134,1724291433319,-500.0,0.00010958,2]
[335507135,1724291433329,-500.0,0.00010958,2]
[335507136,1724291433339,-249.97248213,0.00010958,2]
[335507137,1724291433349,-500.0,0.00010958,2]
[335507138,1724291433358,-500.0,0.00010958,2]
[335507139,1724291433368,-500.0,0.00010958,2]
[335507140,1724291433378,-500.0,0.00010958,2]
[335507141,1724291433387,-500.0,0.00010958,2]
[335507142,1724291433397,-500.0,0.00010958,2]
[335507143,1724291433407,-500.0,0.00010958,2]
[335507144,1724291433416,-500.0,0.00010958,2]
[335507145,1724291433426,-237.72293766,0.00010958,2]
[335507146,1724291433436,-500.0,0.00010958,2]
[335507147,1724291433446,-540.09754576,0.00010958,2]
[335507148,1724291433456,-500.0,0.00010958,2]
[335507149,1724291433466,-500.0,0.00010958,2]
[335507150,1724291433475,-323.44935893,0.00010958,2]
[335507151,1724291433485,-500.0,0.00010958,2]
[335507152,1724291433495,-500.0,0.00010958,2]
[335507153,1724291433505,-505.06913546,0.00010958,2]
[335507154,1724291433515,-500.0,0.00010958,2]
[335507155,1724291433524,-500.0,0.00010958,2]
[335507156,1724291433533,-500.0,0.00010958,2]
[335507157,1724291433543,-500.0,0.00010958,2]
[335507158,1724291433553,-500.0,0.00010958,2]
[335507159,1724291433564,-500.0,0.00010958,2]
[335507160,1724291433574,-500.0,0.00010958,2]
[335507161,1724291433583,-500.0,0.00010958,2]
[335507162,1724291433593,-500.0,0.00010958,2]
[335507163,1724291433602,-322.36864238,0.00010958,2]
[335507164,1724291433612,-500.0,0.00010958,2]
[335507165,1724291433622,-500.0,0.00010958,2]
[335507166,1724291433631,-500.0,0.00010958,2]
[335507167,1724291433641,-595.61131959,0.00010958,2]
[335507168,1724291433650,-535.21452742,0.00010958,2]
[335507169,1724291433660,-534.02640934,0.00010958,2]
[335507170,1724291433670,-500.0,0.00010958,2]
[335507171,1724291433679,-500.0,0.00010958,2]
[335507172,1724291433689,-500.0,0.00010958,2]
[335507173,1724291433698,-500.0,0.00010958,2]
[335507174,1724291433708,-500.0,0.00010958,2]
[335507175,1724291433721,-541.25180206,0.00010958,2]
[335507176,1724291433739,-500.0,0.00010958,2]
[335507177,1724291433755,-500.0,0.00010958,2]
[335507178,1724291433770,-500.0,0.00010958,2]
[335507179,1724291433786,-500.0,0.00010958,2]
[335507180,1724291433803,-443.84531118,0.00010958,2]
[335507181,1724291433819,-500.0,0.00010958,2]
[335507182,1724291433835,-500.0,0.00010958,2]
[335507183,1724291433850,-530.99496888,0.00010958,2]
[335507184,1724291433865,-500.0,0.00010958,2]
[335507185,1724291433881,-500.0,0.00010958,2]
[335507186,1724291433896,-500.0,0.00010958,2]
[335507187,1724291433908,-500.0,0.00010958,2]
[335507188,1724291433922,-500.0,0.00010958,2]
[335507189,1724291433938,-284.50727314,0.00010958,2]
[335507190,1724291433953,-552.52515811,0.00010958,2]
[335507191,1724291433969,-522.71292942,0.00010958,2]
[335507192,1724291433986,-500.0,0.00010958,2]
[335507193,1724291433997,-500.0,0.00010958,2]
[335507194,1724291434009,-500.0,0.00010958,2]
[335507195,1724291434022,-461.11404163,0.00010958,2]
[335507196,1724291434037,-531.55767247,0.00010958,2]
[335507197,1724291434049,-500.0,0.00010958,2]
[335507198,1724291434063,-500.0,0.00010958,2]
[335507199,1724291434078,-500.0,0.00010958,2]
[335507200,1724291434091,-500.0,0.00010958,2]
[335507201,1724291434102,-500.0,0.00010958,2]
[335507202,1724291434115,-500.0,0.00010958,2]
[335507203,1724291434132,-560.18621,0.00010958,2]
[335507204,1724291434147,-500.0,0.00010958,2]
[335507205,1724291434160,-500.0,0.00010958,2]
[335507206,1724291434174,-549.47740986,0.00010958,2]
[335507207,1724291434188,-500.0,0.00010958,2]
[335507208,1724291434202,-500.0,0.00010958,2]
[335507209,1724291434215,-500.0,0.00010958,2]
[335507210,1724291434228,-500.0,0.00010958,2]
[335507211,1724291434241,-500.0,0.00010958,2]
[335507212,1724291434254,-500.0,0.00010958,2]
[335507213,1724291434269,-500.0,0.00010958,2]
[335507214,1724291434282,-157.45872565,0.00010958,2]
[335507215,1724291434295,-500.0,0.00010958,2]
[335507216,1724291434307,-500.0,0.00010958,2]
[335507217,1724291434320,-500.0,0.00010958,2]
[335507218,1724291434333,-245.78488402,0.00010958,2]
[335507219,1724291434346,-500.0,0.00010958,2]
[335507220,1724291434359,-500.0,0.00010958,2]
[335507221,1724291434372,-500.0,0.00010958,2]
[335507222,1724291434385,-500.0,0.00010958,2]
[335507223,1724291434397,-524.70311489,0.00010958,2]
[335507224,1724291434410,-500.0,0.00010958,2]
[335507225,1724291434423,-211.93581987,0.00010958,2]
[335507226,1724291434435,-519.97513684,0.00010958,2]
[335507227,1724291434448,-500.0,0.00010958,2]
[335507228,1724291434460,-546.05642582,0.00010958,2]
[335507229,1724291434473,-512.19574449,0.00010958,2]
[335507230,1724291434486,-500.0,0.00010958,2]
[335507231,1724291434498,-500.0,0.00010958,2]
[335507232,1724291434511,-500.0,0.00010958,2]
[335507233,1724291434524,-500.0,0.00010958,2]
[335507234,1724291434537,-500.0,0.00010958,2]
[335507235,1724291434551,-500.0,0.00010958,2]
[335507236,1724291434563,-643.16612072,0.00010958,2]
[335507237,1724291434575,-500.0,0.00010958,2]
[335507238,1724291434588,-500.0,0.00010958,2]
[335507239,1724291434601,-500.0,0.00010958,2]
[335507240,1724291434613,-500.0,0.00010958,2]
[335507241,1724291434626,-500.0,0.00010958,2]
[335507242,1724291434640,-500.0,0.00010958,2]
[335507243,1724291434653,-500.0,0.00010958,2]
[335507244,1724291434665,-500.0,0.00010958,2]
[335507245,1724291434678,-500.0,0.00010958,2]
[335507246,1724291434690,-501.64317612,0.00010958,2]
[335507247,1724291434702,-500.0,0.00010958,2]
[335507248,1724291434715,-500.0,0.00010958,2]
[335507249,1724291434729,-500.0,0.00010958,2]
[335507250,1724291434741,-440.8649423,0.00010958,2]
[335507251,1724291434754,-500.0,0.00010958,2]
[335507252,1724291434767,-500.0,0.00010958,2]
[335507253,1724291434779,-560.47411554,0.00010958,2]
[335507254,1724291434789,-500.0,0.00010958,2]
[335507255,1724291434798,-500.0,0.00010958,2]
[335507256,1724291434808,-500.0,0.00010958,2]
[335507257,1724291434983,-500.0,0.00010958,2]
[335507258,1724291435003,-500.0,0.00010958,2]
[335507259,1724291435012,-500.0,0.00010958,2]
[335507260,1724291435023,-500.0,0.00010958,2]
[335507261,1724291435033,-500.0,0.00010958,2]
[335507262,1724291435042,-500.0,0.00010958,2]
[335507263,1724291435052,-272.81753609,0.00010958,2]
[335507264,1724291435061,-500.0,0.00010958,2]
[335507265,1724291435070,-500.0,0.00010958,2]
[335507266,1724291435080,-500.0,0.00010958,2]
[335507267,1724291435089,-500.0,0.00010958,2]
[335507268,1724291435098,-500.0,0.00010958,2]
[335507269,1724291435108,-500.0,0.00010958,2]
[335507270,1724291435117,-275.40117183,0.00010958,2]
[335507271,1724291435131,-507.90818097,0.00010958,2]
[335507272,1724291435140,-515.25410206,0.00010958,2]
[335507273,1724291435150,-504.47782295,0.00010958,2]
[335507274,1724291435160,-500.0,0.00010958,2]
[335507275,1724291435171,-500.0,0.00010958,2]
[335507276,1724291435180,-500.0,0.00010958,2]
[335507277,1724291435191,-500.0,0.00010958,2]
[335507278,1724291435200,-500.0,0.00010958,2]
[335507279,1724291435211,-563.11911919,0.00010958,2]
[335507280,1724291435221,-585.46516403,0.00010958,2]
[335507281,1724291435230,-500.0,0.00010958,2]
[335507282,1724291435240,-227.05294506,0.00010958,2]
[335507283,1724291435249,-524.24273505,0.00010958,2]
[335507284,1724291435259,-500.0,0.00010958,2]
[335507285,1724291435268,-500.0,0.00010958,2]
[335507286,1724291435278,-500.0,0.00010958,2]
[335507287,1724291435287,-500.0,0.00010958,2]
[335507288,1724291435296,-500.0,0.00010958,2]
[335507289,1724291435306,-500.0,0.00010958,2]
[335507290,1724291435315,-500.0,0.00010958,2]
[335507291,1724291435325,-500.0,0.00010958,2]
[335507292,1724291435335,-500.0,0.00010958,2]
[335507293,1724291435344,-500.0,0.00010958,2]
[335507294,1724291435354,-500.0,0.00010958,2]
[335507295,1724291435363,-500.0,0.00010958,2]
[335507296,1724291435373,-347.28588417,0.00010958,2]
[335507297,1724291435382,-518.13453789,0.00010958,2]
[335507298,1724291435392,-500.0,0.00010958,2]
[335507299,1724291435401,-500.0,0.00010958,2]
[335507300,1724291435410,-500.0,0.00010958,2]
[335507301,1724291435420,-500.0,0.00010958,2]
[335507302,1724291435429,-500.0,0.00010958,2]
[335507303,1724291435438,-500.0,0.00010958,2]
[335507304,1724291435448,-500.0,0.00010958,2]
[335507305,1724291435457,-500.0,0.00010958,2]
[335507306,1724291435467,-500.0,0.00010958,2]
[335507307,1724291435476,-500.0,0.00010958,2]
[335507308,1724291435485,-500.0,0.00010958,2]
[335507309,1724291435494,-500.0,0.00010958,2]
[335507310,1724291435504,-500.0,0.00010958,2]
[335507311,1724291435513,-500.0,0.00010958,2]
[335507312,1724291435523,-500.0,0.00010958,2]
[335507313,1724291435532,-500.0,0.00010958,2]
[335507314,1724291435542,-500.0,0.00010958,2]
[335507315,1724291435551,-500.0,0.00010958,2]
[335507316,1724291435560,-500.0,0.00010958,2]
[335507317,1724291435570,-500.0,0.00010958,2]
[335507318,1724291435579,-500.0,0.00010958,2]
[335507319,1724291435588,-500.0,0.00010958,2]
[335507320,1724291435597,-500.0,0.00010958,2]
[335507321,1724291435607,-500.0,0.00010958,2]
[335507322,1724291435616,-419.85824938,0.00010958,2]
[335507323,1724291435625,-500.0,0.00010958,2]
[335507324,1724291435635,-500.0,0.00010958,2]
[335507325,1724291435644,-500.0,0.00010958,2]
[335507326,1724291435653,-233.64218959,0.00010958,2]
[335507327,1724291435663,-500.0,0.00010958,2]
[335507328,1724291435672,-500.0,0.00010958,2]
[335507329,1724291435681,-500.0,0.00010958,2]
[335507330,1724291435691,-500.0,0.00010958,2]
[335507331,1724291435700,-500.0,0.00010958,2]
[335507332,1724291435710,-500.0,0.00010958,2]
[335507333,1724291435719,-500.0,0.00010958,2]
[335507334,1724291435728,-500.0,0.00010958,2]
[335507335,1724291435737,-500.0,0.00010958,2]
[335507336,1724291435747,-500.0,0.00010958,2]
[335507337,1724291435757,-500.0,0.00010958,2]
[335507338,1724291435766,-517.05617743,0.00010958,2]
[335507339,1724291435775,-500.0,0.00010958,2]
[335507340,1724291435785,-500.0,0.00010958,2]
[335507341,1724291435794,-249.23202241,0.00010958,2]
[335507342,1724291435804,-500.0,0.00010958,2]
[335507343,1724291435813,-500.0,0.00010958,2]
[335507344,1724291435823,-500.0,0.00010958,2]
[335507345,1724291435832,-500.0,0.00010958,2]
[335507346,1724291435842,-500.0,0.00010958,2]
[335507347,1724291435851,-500.0,0.00010958,2]
[335507348,1724291435861,-500.0,0.00010958,2]
[335507349,1724291435870,-500.0,0.00010958,2]
[335507350,1724291435880,-224.15668989,0.00010958,2]
[335507351,1724291435890,-500.0,0.00010958,2]
[335507352,1724291435899,-500.0,0.00010958,2]
[335507353,1724291435908,-500.0,0.00010958,2]
[335507354,1724291435918,-500.0,0.00010958,2]
[335507355,1724291435928,-584.61521924,0.00010958,2]
[335507356,1724291435937,-500.0,0.00010958,2]
[335507357,1724291435947,-500.0,0.00010958,2]
[335507358,1724291435957,-518.79585271,0.00010958,2]
[335507359,1724291435966,-500.0,0.00010958,2]
[335507360,1724291435975,-619.48328444,0.00010958,2]
[335507361,1724291435984,-500.0,0.00010958,2]
[335507362,1724291435993,-500.0,0.00010958,2]
[335507363,1724291436003,-500.0,0.00010958,2]
[335507364,1724291436012,-500.0,0.00010958,2]
[335507365,1724291436022,-500.0,0.00010958,2]
[335507366,1724291436031,-500.0,0.00010958,2]
[335507367,1724291436040,-500.0,0.00010958,2]
[335507368,1724291436051,-500.0,0.00010958,2]
[335507369,1724291436060,-519.8023538,0.00010958,2]
[335507370,1724291436070,-422.83606396,0.00010958,2]
[335507371,1724291436080,-500.0,0.00010958,2]
[335507372,1724291436090,-500.0,0.00010958,2]
[335507373,1724291436099,-306.13300859,0.00010958,2]
[335507374,1724291436189,-201.62378479,0.00010958,2]
[335507375,1724291436200,-507.27668966,0.00010958,2]
[335507376,1724291436210,-513.48864191,0.00010958,2]
[335507377,1724291436219,-500.0,0.00010958,2]
[335507378,1724291436229,-395.49297853,0.00010958,2]
[335507379,1724291436238,-536.01787134,0.00010958,2]
[335507380,1724291436247,-512.77168531,0.00010958,2]
[335507381,1724291436257,-526.17954821,0.00010958,2]
[335507382,1724291436266,-414.82534871,0.00010958,2]
[335507383,1724291436281,-93.1683457,0.00010958,2]
[335507384,1724291436290,-500.0,0.00010958,2]
[335507385,1724291436300,-97.6561981,0.00010958,2]
[335507386,1724291436312,-188.75596907,0.00010958,2]
[335507387,1724291436321,-500.0,0.00010958,2]
[335507388,1724291436330,-519.69231228,0.00010958,2]
[335507389,1724291436340,-519.30124389,0.00010958,2]
[335507390,1724291436350,-500.0,0.00010958,2]
[335507391,1724291436359,-500.0,0.00010958,2]
[335507392,1724291436368,-500.0,0.00010958,2]
[335507393,1724291436378,-500.0,0.00010958,2]
[335507394,1724291436387,-632.26582143,0.00010958,2]
[335507395,1724291436396,-525.96130717,0.00010958,2]
[335507396,1724291436406,-500.0,0.00010958,2]
[335507397,1724291436415,-500.0,0.00010958,2]
[335507398,1724291436425,-500.0,0.00010958,2]
[335507399,1724291436434,-500.0,0.00010958,2]
[335507400,1724291436443,-500.0,0.00010958,2]
[335507401,1724291436453,-500.0,0.00010958,2]
[335507402,1724291436462,-500.0,0.00010958,2]
[335507403,1724291436471,-523.4486934,0.00010958,2]
[335507404,1724291436481,-510.93854866,0.00010958,2]
[335507405,1724291436490,-534.02814828,0.00010958,2]
[335507406,1724291436500,-500.0,0.00010958,2]
[335507407,1724291436509,-500.0,0.00010958,2]
[335507408,1724291436518,-500.0,0.00010958,2]
[335507409,1724291436527,-500.0,0.00010958,2]
[335507410,1724291436536,-500.0,0.00010958,2]
[335507411,1724291436546,-500.0,0.00010958,2]
[335507412,1724291436555,-500.0,0.00010958,2]
[335507413,1724291436564,-500.0,0.00010958,2]
[335507414,1724291436574,-500.0,0.00010958,2]
[335507415,1724291436583,-500.0,0.00010958,2]
[335507416,1724291436592,-500.0,0.00010958,2]
[335507417,1724291436602,-500.0,0.00010958,2]
[335507418,1724291436611,-414.9352313,0.00010958,2]
[335507419,1724291436630,-85.0647687,0.00010958,2]
[335507420,1724291436639,-432.6052313,0.00010958,2]
[335507422,1724291438417,-67.3947687,0.00010958,2]
[335507423,1724291438426,-307.49729305,0.00010958,2]
[335507424,1724291438436,-509.53395581,0.00010958,2]
[335507425,1724291438445,-224.78285112,0.00010958,2]
[335507426,1724291438457,-286.83063292,0.00010958,2]
[335507427,1724291438466,-514.08957407,0.00010958,2]
[335507428,1724291438476,-510.2551812,0.00010958,2]
[335507429,1724291438485,-511.82207207,0.00010958,2]
[335507430,1724291438494,-151.0,0.00010958,2]
[335507431,1724291438503,-151.0,0.00010958,2]
[335507432,1724291438513,-151.0,0.00010958,2]
[335507433,1724291438522,-151.0,0.00010958,2]
[335507434,1724291438531,-279.448426,0.00010958,2]
[335507435,1724291438540,-151.0,0.00010958,2]
[335507436,1724291438549,-151.0,0.00010958,2]
[335507437,1724291438559,-151.32774,0.00010958,2]
[335507438,1724291438568,-151.0,0.00010958,2]
[335507439,1724291438577,-151.0,0.00010958,2]
[335507440,1724291438587,-151.428564,0.00010958,2]
[335507441,1724291438596,-151.0,0.00010958,2]
[335507442,1724291438605,-151.0,0.00010958,2]
[335507443,1724291438614,-151.0,0.00010958,2]
[335507444,1724291438623,-151.0,0.00010958,2]
[335507445,1724291438632,-151.0,0.00010958,2]
[335507446,1724291438642,-151.0,0.00010958,2]
[335507447,1724291438651,-151.0,0.00010958,2]
[335507448,1724291438661,-151.0,0.00010958,2]
[335507449,1724291438670,-152.226023,0.00010958,2]
[335507450,1724291438679,-200.0,0.00010958,2]
[335507451,1724291438688,-506.21274501,0.00010958,2]
[335507452,1724291438698,-500.0,0.00010958,2]
[335507453,1724291438707,-191.85386266,0.00010958,2]
[335507454,1724291438716,-649.07788497,0.00010958,2]
[335507455,1724291438725,-512.46663585,0.00010958,2]
[335507456,1724291438735,-151.0,0.00010958,2]
[335507457,1724291438744,-151.0,0.00010958,2]
[335507458,1724291438753,-500.0,0.00010958,2]
[335507459,1724291438763,-151.0,0.00010958,2]
[335507460,1724291438773,-500.0,0.00010958,2]
[335507461,1724291438783,-154.140779,0.00010958,2]
[335507463,1724291438791,-500.0,0.00010958,2]
[335507465,1724291438801,-500.0,0.00010958,2]
[335507466,1724291438810,-500.0,0.00010958,2]
[335507467,1724291438819,-500.0,0.00010958,2]
[335507468,1724291438828,-474.73,0.00010958,2]
[335507469,1724291438837,-661.1,0.00010958,2]
[335507470,1724291438846,-661.1,0.00010958,2]
[335507471,1724291438855,-562.88987925,0.00010958,2]
[335507472,1724291438878,-98.21012075,0.00010958,2]
[335507473,1724291438887,-661.1,0.00010958,2]
[335507474,1724291438896,-661.1,0.00010958,2]
[335507475,1724291438906,-661.1,0.00010958,2]
[335507476,1724291438915,-661.1,0.00010958,2]
[335507477,1724291438924,-164.163623,0.00010958,2]
[335507478,1724291438933,-661.1,0.00010958,2]
[335507479,1724291438942,-164.163623,0.00010958,2]
[335507480,1724291438951,-661.1,0.00010958,2]
[335507481,1724291438961,-164.163623,0.00010958,2]
[335507482,1724291438970,-661.1,0.00010958,2]
[335507483,1724291438979,-661.1,0.00010958,2]
[335507484,1724291438987,-164.163623,0.00010958,2]
[335507485,1724291438997,-661.1,0.00010958,2]
[335507486,1724291439006,-164.163623,0.00010958,2]
[335507487,1724291439015,-661.1,0.00010958,2]
[335507488,1724291439024,-661.1,0.00010958,2]
[335507489,1724291439033,-661.1,0.00010958,2]
[335507490,1724291439042,-661.1,0.00010958,2]
[335507491,1724291439051,-164.163623,0.00010958,2]
[335507492,1724291439060,-661.1,0.00010958,2]
[335507493,1724291439069,-164.163623,0.00010958,2]
[335507494,1724291439078,-661.1,0.00010958,2]
[335507495,1724291439087,-164.163623,0.00010958,2]
[335507496,1724291439096,-661.1,0.00010958,2]
[335507497,1724291439105,-661.1,0.00010958,2]
[335507498,1724291439116,-164.163623,0.00010958,2]
[335507499,1724291439127,-661.1,0.00010958,2]
[335507500,1724291439136,-164.163623,0.00010958,2]
[335507501,1724291439146,-661.1,0.00010958,2]
[335507502,1724291439157,-164.163623,0.00010958,2]
[335507503,1724291439166,-661.1,0.00010958,2]
[335507504,1724291439177,-164.163623,0.00010958,2]
[335507505,1724291439186,-661.20989772,0.00010958,2]
[335507506,1724291439195,-164.163623,0.00010958,2]
[335507507,1724291439205,-164.163623,0.00010958,2]
[335507508,1724291439215,-164.163623,0.00010958,2]
[335507509,1724291439224,-164.163623,0.00010958,2]
[335507510,1724291439233,-164.163623,0.00010958,2]
[335507511,1724291439242,-164.163623,0.00010958,2]
[335507512,1724291439252,-164.163623,0.00010958,2]
[335507513,1724291439261,-164.163628,0.00010958,2]
[335507514,1724291439271,-500.0,0.00010958,2]
[335507515,1724291439280,-500.0,0.00010958,2]
[335507516,1724291439290,-500.0,0.00010958,2]
[335507517,1724291439299,-500.0,0.00010958,2]
[335507518,1724291439308,-500.0,0.00010958,2]
[335507519,1724291439317,-151.0,0.00010958,2]
[335507520,1724291439326,-500.0,0.00010958,2]
[335507521,1724291439336,-192.348409,0.00010958,2]
[335507522,1724291439345,-500.0,0.00010958,2]
[335507523,1724291439354,-500.0,0.00010958,2]
[335507524,1724291439364,-500.0,0.00010958,2]
[335507525,1724291439373,-500.0,0.00010958,2]
[335507526,1724291439382,-510.25424416,0.00010958,2]
[335507527,1724291439391,-500.0,0.00010958,2]
[335507528,1724291439400,-500.0,0.00010958,2]
[335507529,1724291439408,-500.0,0.00010958,2]
[335507530,1724291439418,-500.0,0.00010958,2]
[335507531,1724291439427,-500.0,0.00010958,2]
[335507532,1724291439437,-500.0,0.00010958,2]
[335507533,1724291439446,-507.54782401,0.00010958,2]
[335507534,1724291439456,-500.0,0.00010958,2]
[335507535,1724291439466,-548.91327869,0.00010958,2]
[335507536,1724291439475,-539.93162869,0.00010958,2]
[335507537,1724291439484,-500.0,0.00010958,2]
[335507538,1724291439493,-500.0,0.00010958,2]
[335507539,1724291439503,-523.94398428,0.00010958,2]
[335507540,1724291439512,-273.15448498,0.00010958,2]
[335507541,1724291439521,-151.0,0.00010958,2]
[335507542,1724291439530,-151.0,0.00010958,2]
[335507543,1724291439541,-151.0,0.00010958,2]
[335507544,1724291439550,-152.016157,0.00010958,2]
[335507545,1724291439559,-514.86105511,0.00010958,2]
[335507546,1724291439568,-512.28134206,0.00010958,2]
[335507547,1724291439577,-151.0,0.00010958,2]
[335507548,1724291439586,-151.0,0.00010958,2]
[335507549,1724291439595,-151.0,0.00010958,2]
[335507550,1724291439604,-151.226448,0.00010958,2]
[335507551,1724291439613,-624.30861577,0.00010958,2]
[335507552,1724291439622,-151.0,0.00010958,2]
[335507553,1724291439631,-151.0,0.00010958,2]
[335507554,1724291439640,-151.0,0.00010958,2]
[335507555,1724291439649,-151.0,0.00010958,2]
[335507556,1724291439659,-151.0,0.00010958,2]
[335507557,1724291439669,-151.0,0.00010958,2]
[335507558,1724291439678,-151.927603,0.00010958,2]
[335507559,1724291439687,-523.57193709,0.00010958,2]
[335507560,1724291439696,-521.15110273,0.00010958,2]
[335507561,1724291439705,-164.071332,0.00010958,2]
[335507562,1724291439715,-517.78733596,0.00010958,2]
[335507563,1724291439724,-508.47184204,0.00010958,2]
[335507564,1724291439733,-151.0,0.00010958,2]
[335507565,1724291439743,-151.0,0.00010958,2]
[335507566,1724291439752,-151.0,0.00010958,2]
[335507567,1724291439761,-151.0,0.00010958,2]
[335507568,1724291439770,-151.0,0.00010958,2]
[335507569,1724291439779,-151.0,0.00010958,2]
[335507570,1724291439788,-151.0,0.00010958,2]
[335507571,1724291439798,-151.0,0.00010958,2]
[335507572,1724291439807,-151.0,0.00010958,2]
[335507573,1724291439816,-151.0,0.00010958,2]
[335507574,1724291439827,-172.030876,0.00010958,2]
[335507575,1724291439836,-500.0,0.00010958,2]
[335507576,1724291439845,-500.0,0.00010958,2]
[335507577,1724291439855,-500.0,0.00010958,2]
[335507578,1724291439864,-500.0,0.00010958,2]
[335507579,1724291439874,-190.88240479,0.00010958,2]
[335507580,1724291439884,-547.26568174,0.00010958,2]
[335507581,1724291439893,-151.0,0.00010958,2]
[335507582,1724291439902,-151.0,0.00010958,2]
[335507583,1724291439912,-500.0,0.00010958,2]
[335507584,1724291439921,-500.0,0.00010958,2]
[335507585,1724291439930,-151.0,0.00010958,2]
[335507586,1724291439939,-553.43108954,0.00010958,2]